bitfinex/quotes_ETHUSD_20250623
["timestamp","ask_amount","ask_price","bid_price","bid_amount"]
[1750672349608,0.5658,2255.9,2255.5,11.45474528]
[1750672349815,0.5658,2255.9,2255.7,7.02120912]
[1750672350255,0.5658,2256.1,2255.7,7.02120912]
[1750672350551,1.862,2255.9,2255.7,7.02120912]
[1750672350851,1.862,2255.9,2255.7,8.6905478]
[1750672352025,1.862,2255.9,2255.7,11.45440791]
[1750672352510,1.862,2255.9,2255.7,7.02120912]
[1750672353858,0.5658,2256.1,2255.7,7.02120912]
[1750672354066,2.4268,2256.1,2255.7,7.02120912]
[1750672354562,2.0872211,2256.2,2255.9,7.02120912]
[1750672356380,0.6212071,2256.1,2255.6,7.02120912]
[1750672356565,0.6212071,2256.1,2255.6,9.24941283]
[1750672358457,0.6212071,2256.1,2255.4,7.02120912]
[1750672358802,0.5658,2255.9,2255.4,10.0]
[1750672359005,0.05542096,2255.8,2255.4,10.0]
[1750672359206,1.861,2255.7,2255.4,10.0]
[1750672359759,1.861,2255.7,2255.3,7.02120912]
[1750672359979,0.5658,2255.5,2255.3,7.02120912]
[1750672361284,1.861,2255.7,2255.3,7.02120912]
[1750672361285,0.5658,2255.9,2255.4,0.70212091]
[1750672361455,0.5658,2255.6,2255.5,7.02120912]
[1750672361849,0.5658,2255.6,2255.3,7.02120912]
[1750672362081,0.05542392,2255.5,2255.3,7.02120912]
[1750672363184,0.05542392,2255.5,2255.1,14.87471252]
[1750672363373,0.05542392,2255.5,2255.3,7.02120912]
[1750672363862,0.62122395,2255.6,2255.3,7.02120912]
[1750672376333,0.5658,2255.6,2255.3,7.02120912]
[1750672377905,1.861,2255.7,2255.3,7.02120912]
[1750672378300,0.5658,2255.8,2255.5,7.02120912]
[1750672378612,9.075,2255.7,2255.5,7.02120912]
[1750672379913,9.075,2255.7,2255.5,5.52120912]
[1750672381317,0.5658,2256.0,2255.5,5.52120912]
[1750672381486,1.861,2255.7,2255.5,6.30590912]
[1750672381816,1.861,2255.7,2255.5,6.93650003]
[1750672389049,1.861,2255.7,2255.3,1.332791]
[1750672389205,1.861,2255.7,2255.4,7.02120912]
[1750672390741,1.861,2255.7,2255.6,7.02120912]
[1750672393937,1.86,2255.8,2255.6,7.02120912]
[1750672407176,0.2262211,2256.2,2255.7,0.8114]
[1750672407343,1.86,2255.9,2255.8,7.02120912]
[1750672408264,1.86,2255.9,2255.6,8.35386512]
[1750672408472,1.86,2255.9,2255.6,7.02120912]
[1750672410603,1.86,2255.9,2255.6,11.45460685]
[1750672410899,1.86,2255.9,2255.6,13.25477263]
[1750672411600,0.7920211,2256.2,2255.6,13.25477263]
[1750672411794,9.12541063,2256.1,2255.6,13.25477263]
[1750672412001,9.07,2256.1,2255.6,13.25477263]
[1750672412502,0.7920211,2256.2,2255.6,13.25477263]
[1750672412808,1.86,2256.0,2255.6,14.58747563]
[1750672412995,1.86,2256.0,2255.6,10.1540779]
[1750672413396,1.86,2256.0,2255.6,14.58748792]
[1750672413703,0.7920211,2256.2,2255.7,0.7585]
[1750672414010,9.067,2256.1,2255.8,7.02120912]
[1750672414200,1.858,2256.0,2255.8,7.02120912]
[1750672414401,1.858,2256.0,2255.8,8.9991258]
[1750672415402,1.858,2256.0,2255.9,4.4328206]
[1750672415576,0.2262211,2256.2,2256.0,5.24150922]
[1750672415773,0.2262211,2256.2,2256.1,7.02120912]
[1750672416107,0.2262211,2256.2,2256.1,12.25615845]
[1750672416405,0.2262211,2256.2,2256.1,24.01395087]
[1750672416706,0.2262211,2256.2,2256.1,31.22295087]
[1750672417274,0.2262211,2256.2,2256.1,24.01395087]
[1750672418502,0.2262211,2256.2,2256.1,24.57975087]
[1750672420384,0.2262211,2256.2,2256.1,17.58700912]
[1750672421314,0.2262211,2256.2,2256.1,7.58700912]
[1750672425235,0.2262211,2256.2,2256.1,0.5658]
[1750672425385,0.2262211,2256.2,2256.0,10.0]
[1750672425585,2.4228,2256.1,2255.9,1.332502]
[1750672426021,2.4228,2256.1,2255.8,10.0]
[1750672426419,2.4228,2256.1,2255.9,7.02120912]
[1750672428237,2.4228,2256.1,2255.7,8.35385812]
[1750672428430,0.05541099,2256.0,2255.7,8.35385812]
[1750672428989,0.05541099,2256.0,2255.7,7.02120912]
[1750672430215,2.4228,2256.1,2255.7,7.02120912]
[1750672432226,2.4228,2256.1,2255.7,11.45439993]
[1750672432385,2.4228,2256.1,2255.7,7.02120912]
[1750672432588,0.05541235,2256.0,2255.7,7.02120912]
[1750672433132,2.4228,2256.1,2255.7,7.02120912]
[1750672433791,2.4228,2256.1,2255.7,11.45442226]
[1750672435229,1.857,2256.1,2255.9,7.02120912]
[1750672435636,0.2262211,2256.2,2256.1,4.43242764]
[1750672435803,0.2262211,2256.2,2256.1,11.45363676]
[1750672437013,0.2262211,2256.2,2256.1,12.24103676]
[1750672437914,0.2262211,2256.2,2256.1,22.24103676]
[1750672438707,0.2262211,2256.2,2256.1,23.57327176]
[1750672438913,0.2262211,2256.2,2256.1,26.48838754]
[1750672449850,0.2262211,2256.2,2256.1,33.50959666]
[1750672450134,0.2262211,2256.2,2256.1,26.48838754]
[1750672451439,0.2262211,2256.2,2256.1,33.69438754]
[1750672451601,0.2262211,2256.2,2256.1,26.48838754]
[1750672451802,0.2262211,2256.2,2256.1,33.69438754]
[1750672456927,0.5658,2257.0,2256.8,4.43090309]
[1750672457133,0.5658,2257.2,2256.9,7.02120912]
[1750672457306,2.4228,2257.2,2256.9,7.02120912]
[1750672458084,2.4228,2257.2,2257.1,7.02120912]
[1750672458380,0.5658,2257.4,2257.1,11.45167298]
[1750672458680,1.857,2257.4,2257.3,7.02120912]
[1750672460381,1.857,2257.4,2257.3,7.4569406]
[1750672461878,0.5658,2257.6,2257.3,7.4569406]
[1750672462083,2.4218,2257.8,2257.5,7.02120912]
[1750672463781,1.856,2257.8,2257.7,7.02120912]
[1750672463952,1.856,2257.8,2257.5,7.02120912]
[1750672464155,2.4218,2257.8,2257.3,6.16937359]
[1750672464356,2.4218,2257.8,2257.4,7.02120912]
[1750672464978,2.4218,2257.8,2257.4,7.06550232]
[1750672465570,2.4218,2257.8,2257.4,7.02120912]
[1750672466285,2.4218,2257.8,2257.4,7.0655023]
[1750672469468,2.4218,2257.8,2257.6,7.02120912]
[1750672469803,2.4218,2257.8,2257.6,7.72775935]
[1750672470188,0.5658,2258.3,2257.6,7.72775935]
[1750672470379,0.5658,2258.1,2257.6,7.72775935]
[1750672470574,0.055361,2258.0,2257.6,0.70655023]
[1750672470797,0.5658,2257.9,2257.3,0.43573148]
[1750672470970,9.059,2258.2,2257.2,17.02120912]
[1750672470971,0.5658,2257.7,2257.2,17.02120912]
[1750672471171,0.5658,2257.7,2257.2,21.45142718]
[1750672471371,0.5658,2257.7,2257.2,17.02120912]
[1750672472201,0.5658,2257.7,2257.2,21.90379805]
[1750672472404,0.5658,2257.7,2257.3,2.96120302]
[1750672472405,2.4218,2257.7,2257.3,2.96120302]
[1750672472707,0.05537366,2257.6,2257.2,10.45233438]
[1750672472913,2.4218,2257.7,2257.2,10.45233438]
[1750672475206,0.05537467,2257.6,2257.2,10.45233438]
[1750672477528,0.5658,2257.5,2257.2,10.45233438]
[1750672477894,0.5658,2257.5,2257.2,10.0]
[1750672480798,0.5658,2257.5,2257.2,10.44839468]
[1750672481004,0.5658,2257.5,2257.2,13.08146618]
[1750672482236,1.856,2257.6,2257.3,7.06550876]
[1750672482407,1.856,2257.6,2257.5,7.02120912]
[1750672482737,1.856,2257.6,2257.3,11.45114007]
[1750672482938,1.856,2257.6,2257.3,7.02120912]
[1750672483146,1.856,2257.6,2257.3,10.13335089]
[1750672490371,1.91136902,2257.6,2257.2,10.44839468]
[1750672491972,0.5658,2257.5,2257.2,0.44839468]
[1750672492133,0.62117459,2257.5,2257.1,7.02120912]
[1750672492972,0.5658,2257.5,2257.1,7.02120912]
[1750672493171,0.5658,2257.5,2257.1,7.06550879]
[1750672493467,0.5658,2257.5,2257.1,7.02120912]
[1750672494161,0.5658,2257.5,2257.1,7.45369524]
[1750672494361,0.5658,2257.5,2257.1,9.28119476]
[1750672494773,0.05537457,2257.4,2256.8,7.02120912]
[1750672494972,0.5658,2257.3,2256.9,10.0]
[1750672496288,0.5658,2257.3,2256.8,7.02120912]
[1750672496486,0.62117873,2257.2,2256.6,7.02120912]
[1750672496656,0.5658,2257.0,2256.6,7.02120912]
[1750672496856,0.62118687,2257.0,2256.6,7.80121003]
[1750672497399,0.62118687,2257.0,2256.4,7.02120912]
[1750672497609,0.62118687,2257.0,2256.2,7.02120912]
[1750672497785,0.62118687,2257.0,2256.2,7.46182001]
[1750672497989,0.5658,2257.0,2256.2,7.46182001]
[1750672498304,0.5658,2257.0,2256.1,0.04431694]
[1750672498305,0.5658,2256.8,2256.1,0.04431694]
[1750672498507,0.62119912,2256.7,2256.1,0.78527261]
[1750672498826,2.4218,2256.6,2256.1,0.78527261]
[1750672499161,2.4218,2256.6,2256.1,0.82959189]
[1750672499575,2.4218,2256.6,2256.1,0.78527261]
[1750672499769,0.0553991,2256.5,2256.1,0.78527261]
[1750672499974,0.0553991,2256.5,2256.0,7.02120912]
[1750672499975,0.5658,2256.4,2256.0,7.02120912]
[1750672500411,0.05540131,2256.3,2255.6,7.84380912]
[1750672500619,0.5658,2256.2,2255.8,0.43320306]
[1750672500796,1.856,2256.1,2255.7,0.04432675]
[1750672500994,1.856,2256.1,2255.6,7.02120912]
[1750672501166,0.5658,2255.9,2255.6,7.80559003]
[1750672501365,0.5658,2255.9,2255.6,0.78438091]
[1750672501563,0.5658,2255.9,2255.4,7.02120912]
[1750672501819,0.05541145,2255.8,2255.3,7.02120912]
[1750672502099,0.5658,2255.7,2255.3,7.02120912]
[1750672503228,1.91141974,2255.6,2255.1,7.47558914]
[1750672503361,2.4218,2255.5,2255.1,0.45438002]
[1750672503697,2.4218,2255.5,2254.9,7.02120912]
[1750672503896,0.05542442,2255.4,2254.8,7.02120912]
[1750672504107,0.5658,2255.3,2254.7,7.02120912]
[1750672504273,0.05543402,2255.2,2254.7,7.02120912]
[1750672504473,0.05543402,2255.2,2254.7,7.473015]
[1750672504775,0.81352244,2255.3,2254.7,7.473015]
[1750672504976,2.4248,2255.4,2255.1,7.02120912]
[1750672511396,1.86,2255.6,2255.3,7.02120912]
[1750672511749,0.5658,2255.8,2255.3,7.02120912]
[1750672511750,1.86,2255.7,2255.5,7.02120912]
[1750672513722,1.86,2255.7,2255.3,7.80160912]
[1750672516231,1.86,2255.7,2255.4,0.04433333]
[1750672516722,1.86,2255.7,2255.5,7.02120912]
[1750672525212,1.86,2255.7,2255.3,8.63053666]
[1750672525600,1.86,2255.7,2255.2,10.0]
[1750672525792,0.5658,2255.5,2254.9,14.43476349]
[1750672526129,0.5658,2255.5,2255.1,10.0]
[1750672527896,0.5658,2255.5,2255.0,7.02120912]
[1750672528225,0.5658,2255.5,2254.9,10.0]
[1750672528226,0.05542668,2255.4,2254.9,10.0]
[1750672528429,0.05542668,2255.4,2254.9,12.26786899]
[1750672528797,0.05542668,2255.4,2254.9,16.70264959]
[1750672529011,0.5658,2255.5,2254.9,16.70264959]
[1750672529232,0.5658,2255.5,2255.0,7.02120912]
[1750672530724,0.5658,2255.5,2255.0,11.45579011]
[1750672530907,0.5658,2255.5,2255.1,2.37236591]
[1750672531114,9.069,2255.4,2255.1,2.37236591]
[1750672533144,9.069,2255.4,2255.2,7.02120912]
[1750672536138,0.5658,2255.5,2255.2,7.02120912]
[1750672536139,1.857,2255.3,2255.2,7.02120912]
[1750672543346,1.857,2255.3,2255.1,7.02120912]
[1750672544451,1.857,2255.3,2255.0,10.0]
[1750672546555,0.5658,2255.5,2255.0,10.0]
[1750672546723,1.857,2255.7,2255.4,7.02120912]
[1750672546911,1.857,2255.7,2255.4,7.06554242]
[1750672547614,11.2218,2255.9,2255.4,11.4549165]
[1750672547948,1.857,2255.8,2255.6,7.02120912]
[1750672548530,1.857,2255.8,2255.7,4.43313373]
[1750672548729,10.656,2255.9,2255.7,4.43313373]
[1750672548929,1.857,2256.5,2255.9,0.7697]
[1750672549125,1.857,2256.5,2256.3,7.02120912]
[1750672550018,1.857,2256.5,2256.1,7.02120912]
[1750672550850,1.857,2256.5,2256.3,7.02120912]
[1750672554071,0.5658,2256.8,2256.3,7.02120912]
[1750672554258,1.857,2256.4,2256.3,7.02120912]
[1750672556569,1.857,2256.4,2256.2,0.45262447]
[1750672556769,1.857,2256.4,2256.1,7.02120912]
[1750672557683,1.857,2256.4,2255.9,7.79090912]
[1750672557858,1.857,2256.4,2255.8,10.0]
[1750672557859,0.5658,2256.3,2255.8,10.0]
[1750672558106,0.5658,2256.3,2255.7,7.84550912]
[1750672558107,0.05540504,2256.2,2255.7,7.84550912]
[1750672559084,0.05540504,2256.2,2255.7,12.27869154]
[1750672559260,0.5658,2256.3,2255.7,12.32301867]
[1750672559487,0.5658,2256.3,2255.7,12.27869154]
[1750672560287,0.5658,2256.3,2255.7,12.27872054]
[1750672560445,0.5658,2256.3,2255.7,7.84550912]
[1750672560640,0.5658,2256.3,2255.7,7.88983624]
[1750672560841,0.5658,2256.3,2255.7,14.99857859]
[1750672561079,0.5658,2256.3,2255.7,14.95425147]
[1750672561265,0.5658,2256.3,2255.8,10.0]
[1750672561943,0.5658,2256.3,2255.8,10.44147729]
[1750672563881,0.5658,2256.3,2255.8,14.87449328]
[1750672564380,0.5658,2256.3,2255.9,7.02120912]
[1750672565480,1.5,2256.0,2255.9,7.02120912]
[1750672566452,1.5,2256.0,2255.9,11.49835432]
[1750672566660,1.5,2256.0,2255.9,11.45402972]
[1750672569592,1.5,2256.0,2255.9,7.02120912]
[1750672569791,1.5,2256.0,2255.9,1.71530575]
[1750672576380,1.5,2256.0,2255.8,0.44147729]
[1750672576585,1.5,2256.0,2255.7,10.0]
[1750672576795,1.5,2256.0,2255.7,14.43312246]
[1750672577005,1.5,2256.0,2255.8,7.02120912]
[1750672578212,1.5,2256.0,2255.8,7.46080173]
[1750672578412,1.5,2256.0,2255.8,8.72906343]
[1750672579608,1.5,2256.0,2255.8,13.16200568]
[1750672581610,1.5,2256.0,2255.8,8.72906343]
[1750672584812,1.5,2256.0,2255.8,13.16206204]
[1750672584984,1.5,2256.0,2255.8,8.72906343]
[1750672585974,2.0658,2256.0,2255.8,0.43959261]
[1750672586170,2.0658,2256.0,2255.6,17.02120912]
[1750672586415,2.0658,2256.0,2255.6,21.45459489]
[1750672586597,2.0658,2256.0,2255.7,4.43320872]
[1750672587621,2.0658,2256.0,2255.6,21.89329668]
[1750672587787,2.0658,2256.0,2255.6,24.72258564]
[1750672587988,2.0658,2256.0,2255.6,20.28929581]
[1750672588294,2.0658,2256.0,2255.6,24.72254057]
[1750672588503,2.0658,2256.0,2255.7,4.43320322]
[1750672588700,2.0658,2256.0,2255.8,7.02120912]
[1750672588906,1.5,2256.0,2255.8,11.45420375]
[1750672589828,1.5,2256.0,2255.8,8.48729286]
[1750672590028,1.5,2256.0,2255.8,12.92015836]
[1750672590207,1.5,2256.0,2255.9,4.4328206]
[1750672590896,1.5,2256.0,2255.9,5.2175206]
[1750672592628,1.5,2256.0,2255.9,15.26184518]
[1750672592832,1.5,2256.0,2255.9,18.47905423]
[1750672594229,1.37078589,2256.0,2255.9,18.47905423]
[1750672602551,1.37078589,2256.0,2255.9,13.26153363]
[1750672602750,1.37078589,2256.0,2255.9,14.4328206]
[1750672603339,1.37078589,2256.0,2255.9,10.0]
[1750672604050,1.37078589,2256.0,2255.9,14.4328206]
[1750672607657,1.37078589,2256.0,2255.8,1.46608374]
[1750672607857,1.37078589,2256.0,2255.7,7.02120912]
[1750672608062,1.37078589,2256.0,2255.7,11.49874873]
[1750672608265,1.37078589,2256.0,2255.7,11.45442142]
[1750672609528,1.37078589,2256.0,2255.8,4.43300455]
[1750672609727,1.37078589,2256.0,2255.9,7.02120912]
[1750672610644,1.37078589,2256.0,2255.9,11.45402972]
[1750672610844,1.37078589,2256.0,2255.9,7.02120912]
[1750672613577,1.37078589,2256.0,2255.9,11.45402972]
[1750672613788,1.37078589,2256.0,2255.9,13.33830021]
[1750672615471,1.37078589,2256.0,2255.9,8.90547961]
[1750672616772,1.37078589,2256.0,2255.9,13.38262276]
[1750672617081,1.37078589,2256.0,2255.9,13.33830021]
[1750672618538,1.37078589,2256.0,2255.9,14.12810021]
[1750672626117,0.05540192,2256.6,2256.5,4.43164192]
[1750672626118,0.5658,2256.6,2256.5,4.43164192]
[1750672626408,1.855,2256.7,2256.4,7.02120912]
[1750672626603,0.5658,2256.6,2256.3,10.0]
[1750672629819,0.05539367,2256.5,2256.0,1.332306]
[1750672630022,0.5658,2256.4,2256.0,10.0]
[1750672630822,0.05540273,2256.3,2256.0,10.0]
[1750672630998,0.5658,2256.1,2255.9,10.0]
[1750672632131,0.62120504,2256.1,2255.9,10.0]
[1750672632823,0.5658,2256.1,2255.8,7.02120912]
[1750672633822,0.62121035,2256.1,2255.8,7.02120912]
[1750672638032,0.5658,2256.1,2255.8,7.02120912]
[1750672641629,0.5658,2256.1,2255.8,12.6434497]
[1750672641834,0.5658,2256.1,2256.0,7.02120912]
[1750672642828,2.4188,2256.1,2256.0,7.02120912]
[1750672643797,0.5658,2256.1,2256.0,7.02120912]
[1750672643997,2.4188,2256.1,2256.0,7.02120912]
[1750672644924,1.853,2256.1,2256.0,7.02120912]
[1750672653837,1.853,2256.1,2255.8,7.02120912]
[1750672655140,1.853,2256.1,2255.6,10.43879773]
[1750672655305,0.62120896,2256.0,2255.1,12.20600201]
[1750672655638,0.5658,2255.8,2255.2,10.0]
[1750672656348,0.05542339,2255.7,2255.1,7.46608845]
[1750672656506,2.4188,2255.6,2255.1,7.46608845]
[1750672657140,2.4188,2255.6,2255.1,7.02120912]
[1750672657531,0.5658,2255.6,2255.3,7.02120912]
[1750672657835,1.853,2255.5,2255.3,7.02120912]
[1750672658538,1.854,2255.9,2255.6,4.43335219]
[1750672658739,1.854,2255.9,2255.8,7.02120912]
[1750672658939,1.854,2255.9,2255.6,7.02120912]
[1750672660350,1.854,2255.9,2255.6,8.00464716]
[1750672663437,1.854,2255.9,2255.6,12.92616594]
[1750672663645,1.852,2255.9,2255.8,7.02120912]
[1750672664332,1.852,2255.9,2255.7,4.43312772]
[1750672664515,1.852,2255.9,2255.8,7.02120912]
[1750672665039,1.852,2255.9,2255.8,11.45414133]
[1750672665253,1.852,2255.9,2255.8,13.18559897]
[1750672666034,0.5658,2256.5,2255.9,4.4326712]
[1750672666248,1.852,2256.4,2256.0,7.06553386]
[1750672666614,1.852,2256.4,2256.0,11.4981468]
[1750672666814,1.852,2256.3,2256.2,7.02120912]
[1750672667015,0.5658,2256.8,2256.2,12.96434125]
[1750672667238,9.052,2256.7,2256.2,12.96434125]
[1750672667513,9.052,2256.7,2256.2,8.53223003]
[1750672667713,9.052,2256.7,2256.2,12.96442332]
[1750672667945,0.5658,2256.8,2256.2,12.96442332]
[1750672668146,9.051,2256.7,2256.3,1.73967274]
[1750672669832,9.051,2256.7,2256.3,6.17167792]
[1750672670149,9.051,2256.7,2256.4,0.04431274]
[1750672671851,9.051,2256.7,2256.3,1.73967274]
[1750672672348,9.051,2256.7,2256.4,0.04431276]
[1750672672549,9.051,2256.7,2256.4,1.65237057]
[1750672672750,0.5658,2257.0,2256.6,7.02120912]
[1750672672925,9.051,2256.8,2256.6,7.88151894]
[1750672673254,9.051,2256.8,2256.6,7.83720912]
[1750672673547,9.051,2256.8,2256.7,1.2268776]
[1750672675248,9.051,2256.8,2256.6,7.02120912]
[1750672675431,9.10638907,2256.8,2256.4,17.82930912]
[1750672676323,9.10638907,2256.8,2256.4,17.02120912]
[1750672677252,1.90738907,2256.8,2256.4,17.02120912]
[1750672677457,7.198,2256.7,2256.4,17.02120912]
[1750672677623,7.198,2256.7,2256.5,2.1453224]
[1750672681055,7.198,2256.7,2256.5,6.57691465]
[1750672682163,1.852,2256.8,2256.7,4.43124916]
[1750672682458,9.049,2256.8,2256.7,4.43124916]
[1750672682830,1.852,2256.8,2256.7,4.43124916]
[1750672683031,1.852,2256.8,2256.7,6.31223281]
[1750672683662,1.852,2256.8,2256.7,6.35654164]
[1750672683961,1.852,2256.8,2256.7,7.13113281]
[1750672684459,1.852,2256.8,2256.7,7.17543993]
[1750672685660,1.852,2256.8,2256.7,7.13113281]
[1750672685861,1.852,2256.8,2256.7,2.69988365]
[1750672686561,1.852,2256.8,2256.7,7.13113281]
[1750672687027,1.852,2256.8,2256.7,7.17543941]
[1750672687235,1.852,2256.8,2256.7,17.17543941]
[1750672687470,1.852,2256.8,2256.7,17.13113281]
[1750672688369,1.852,2256.8,2256.7,18.46311381]
[1750672692373,0.5658,2257.6,2257.1,12.41449994]
[1750672692574,1.851,2257.4,2257.2,4.43026453]
[1750672692869,1.851,2257.4,2257.2,4.47456169]
[1750672693772,1.851,2257.4,2257.3,4.43007132]
[1750672693942,1.851,2257.4,2257.3,5.80908678]
[1750672694361,1.851,2257.4,2257.3,7.14081878]
[1750672695671,10.649,2257.7,2257.5,4.42961891]
[1750672695851,1.851,2257.6,2257.5,7.02120912]
[1750672696050,1.851,2257.6,2257.5,9.51887388]
[1750672696453,1.851,2257.6,2257.5,2.93866837]
[1750672698473,1.851,2257.6,2257.5,4.27025837]
[1750672699576,1.851,2257.6,2257.5,2.93866837]
[1750672700146,1.851,2257.6,2257.4,1.331673]
[1750672700375,0.5658,2257.5,2257.3,10.0]
[1750672700678,7.194,2257.4,2257.3,10.0]
[1750672702691,0.5658,2257.3,2256.7,9.69809277]
[1750672702859,0.5658,2257.3,2256.8,1.331993]
[1750672703886,0.05538066,2257.2,2256.8,1.331993]
[1750672704083,1.851,2257.1,2256.8,1.331993]
[1750672704275,7.194,2257.0,2256.8,1.331993]
[1750672704593,7.194,2257.0,2256.9,0.83532021]
[1750672704798,7.7598,2257.0,2256.6,10.0]
[1750672705092,7.7598,2257.0,2256.7,1.332069]
[1750672705266,7.81518393,2257.0,2256.7,1.332069]
[1750672705851,7.81518393,2257.0,2256.6,10.44404531]
[1750672706052,7.81518393,2257.0,2256.6,11.77622131]
[1750672706251,7.7598,2257.0,2256.7,1.87974304]
[1750672708508,0.05538831,2256.9,2256.7,1.87974304]
[1750672709894,7.7598,2257.0,2256.4,10.0]
[1750672709895,0.5658,2256.8,2256.4,10.0]
[1750672710255,0.5658,2256.8,2256.4,14.43176023]
[1750672710482,0.5658,2256.8,2256.4,10.0]
[1750672710784,0.5658,2256.8,2256.4,14.88340871]
[1750672710989,0.5658,2256.8,2256.5,2.76689593]
[1750672711298,0.62119557,2257.0,2256.5,14.21961803]
[1750672711453,7.195,2256.8,2256.7,7.02120912]
[1750672712202,7.195,2256.8,2256.6,5.76344371]
[1750672712203,7.195,2256.8,2256.6,8.35334412]
[1750672713608,0.5658,2257.0,2256.6,8.35334412]
[1750672713900,9.046,2256.9,2256.7,1.55517581]
[1750672717119,9.046,2256.8,2256.7,1.55517581]
[1750672722990,0.5658,2256.7,2256.5,2.76689593]
[1750672723195,0.62119217,2256.7,2256.5,2.76689593]
[1750672723626,1.85,2256.6,2256.5,12.76689593]
[1750672724032,1.85,2256.6,2256.5,2.76689593]
[1750672724198,1.85,2256.6,2256.4,0.4515774]
[1750672724398,1.85,2256.6,2256.2,11.332371]
[1750672724898,1.85,2256.6,2256.4,14.43177353]
[1750672725321,0.5658,2256.9,2256.5,11.45281065]
[1750672725545,9.045,2256.8,2256.5,8.24282018]
[1750672725851,1.85,2256.7,2256.5,8.24282018]
[1750672726011,1.85,2256.7,2256.5,12.67444527]
[1750672726327,1.85,2256.7,2256.6,4.43144553]
[1750672727026,0.5658,2257.1,2256.6,4.43144553]
[1750672727229,9.045,2257.0,2256.7,1.71058787]
[1750672727525,9.045,2257.0,2256.7,8.73179699]
[1750672727832,9.10038704,2257.0,2256.7,8.73179699]
[1750672728127,9.10038704,2257.0,2256.7,7.02120912]
[1750672730037,9.10038704,2257.0,2256.5,8.24282018]
[1750672734213,0.5658,2256.9,2256.5,8.24282018]
[1750672734744,0.62118985,2256.9,2256.5,8.24282018]
[1750672735256,0.5658,2256.9,2256.5,8.28713207]
[1750672737948,0.62118989,2256.9,2256.5,8.24282018]
[1750672738419,0.62118989,2256.9,2256.5,7.02120912]
[1750672739148,0.62118989,2256.9,2256.4,0.43324918]
[1750672739315,0.62118989,2256.9,2256.4,10.0]
[1750672740425,0.62118989,2256.9,2256.5,7.02120912]
[1750672740426,0.5658,2256.9,2256.5,7.02120912]
[1750672742846,0.5658,2256.9,2256.4,14.88329658]
[1750672743010,0.5658,2256.9,2256.4,7.47273957]
[1750672743610,0.05539258,2256.8,2256.4,7.47273957]
[1750672743808,0.5658,2256.9,2256.4,7.47273957]
[1750672743809,0.62119258,2256.9,2256.4,0.45153045]
[1750672744024,1.58781184,2256.9,2256.3,17.02120912]
[1750672744225,0.5658,2256.8,2256.3,17.02120912]
[1750672745046,0.5658,2256.8,2256.3,21.45323627]
[1750672745239,0.5658,2256.6,2256.2,0.43653416]
[1750672745434,1.9054002,2256.5,2256.0,15.19399442]
[1750672745745,1.9054002,2256.5,2256.0,12.66480196]
[1750672746446,0.5658,2256.4,2255.9,8.35366312]
[1750672746647,0.05540036,2256.3,2255.8,11.45409976]
[1750672746813,0.5658,2256.4,2255.9,14.4771336]
[1750672747013,0.5658,2256.4,2255.9,14.43281031]
[1750672747424,0.62120411,2256.4,2255.9,14.43281031]
[1750672747943,0.5658,2256.4,2255.9,10.0]
[1750672748124,0.62120409,2256.4,2255.9,10.0]
[1750672748919,0.8683245,2256.4,2255.9,10.43536708]
[1750672749119,0.5658,2256.3,2255.9,10.43536708]
[1750672752115,0.055407,2256.2,2255.9,0.43536708]
[1750672752320,0.055407,2256.2,2255.8,7.02120912]
[1750672752321,0.5658,2256.1,2255.8,7.02120912]
[1750672752546,1.849,2256.0,2255.8,7.02120912]
[1750672754761,1.849,2256.0,2255.8,11.45417159]
[1750672754921,1.849,2256.0,2255.8,13.2521268]
[1750672756551,1.849,2256.0,2255.8,8.81916433]
[1750672756751,1.849,2256.0,2255.8,13.25217831]
[1750672756922,1.849,2256.0,2255.8,8.81916433]
[1750672757551,1.849,2256.0,2255.8,9.2599375]
[1750672758357,0.24712041,2256.4,2255.9,0.7686]
[1750672758658,1.85,2256.3,2256.1,7.02120912]
[1750672762018,1.85,2256.2,2256.1,7.02120912]
[1750672765119,0.5658,2256.5,2256.1,7.02120912]
[1750672765343,1.85,2256.3,2256.1,7.02120912]
[1750672765623,1.85,2256.3,2256.1,9.81995825]
[1750672768770,1.85,2256.3,2256.1,7.02120912]
[1750672772572,1.85,2256.3,2256.0,10.0]
[1750672772769,1.85,2256.3,2256.0,17.02120912]
[1750672772977,1.85,2256.3,2256.0,21.45382544]
[1750672776114,1.85,2256.3,2256.0,17.02120912]
[1750672777795,1.85,2256.3,2256.0,21.4538217]
[1750672778093,1.85,2256.3,2256.0,24.39959469]
[1750672778766,1.85,2256.3,2256.0,19.96698211]
[1750672779782,1.85,2256.3,2256.0,24.39959825]
[1750672780290,1.85,2256.3,2256.0,25.21333658]
[1750672781595,1.85,2256.3,2256.0,20.78088211]
[1750672781970,1.85,2256.3,2256.0,17.02120912]
[1750672782962,0.5658,2256.2,2256.0,17.02120912]
[1750672784614,0.5658,2256.2,2255.8,1.77327517]
[1750672784615,0.5658,2256.2,2255.9,10.0]
[1750672785116,0.62120555,2256.2,2255.9,10.0]
[1750672785409,0.62120557,2256.2,2255.9,10.0]
[1750672785817,0.62120569,2256.2,2255.9,10.0]
[1750672786381,0.5658,2256.2,2255.9,10.0]
[1750672787909,0.5658,2256.2,2256.0,7.02120912]
[1750672791514,0.80738,2256.2,2255.9,11.332584]
[1750672791717,0.86278556,2256.2,2255.5,7.02120912]
[1750672791920,0.5658,2256.1,2255.6,1.332738]
[1750672792085,0.05541197,2256.0,2255.6,11.332738]
[1750672792485,0.5658,2256.0,2255.6,11.332738]
[1750672792698,0.5658,2256.0,2255.6,11.78563549]
[1750672793416,0.05541238,2255.9,2255.6,11.78563549]
[1750672793611,1.848,2255.8,2255.6,11.78563549]
[1750672793812,1.848,2255.8,2255.6,0.45289749]
[1750672794018,0.5658,2255.7,2255.4,7.02120912]
[1750672794221,0.5658,2255.7,2255.5,11.33282]
[1750672795239,0.5658,2255.7,2255.5,1.33282]
[1750672795525,0.86813706,2255.7,2255.4,0.45094496]
[1750672795723,0.86813706,2255.7,2255.3,10.0]